bitfinex-derivatives/quotes_BTCF0:USTF0_20250728
["timestamp","ask_amount","ask_price","bid_price","bid_amount"]
[1753713571140,0.99723334,118290.0,118280.0,0.56478043]
[1753713571541,0.17840782,118290.0,118280.0,0.56478043]
[1753713571942,0.01467782,118290.0,118280.0,0.59509293]
[1753713572342,1.98219482,118320.0,118310.0,0.3675245]
[1753713572544,1.34977584,118320.0,118310.0,0.4768645]
[1753713574037,1.26525694,118320.0,118310.0,0.3114545]
[1753713574236,1.26525694,118320.0,118310.0,0.49959593]
[1753713574641,1.26625694,118320.0,118310.0,0.49959593]
[1753713575745,0.75738142,118320.0,118310.0,0.49959593]
[1753713575943,1.26625694,118320.0,118310.0,0.49959593]
[1753713576538,1.26624289,118320.0,118310.0,0.4338645]
[1753713576740,0.62352249,118320.0,118310.0,0.45243596]
[1753713576940,0.80717249,118320.0,118310.0,0.47515033]
[1753713577244,0.98598523,118350.0,118340.0,0.0364834]
[1753713577447,0.98598523,118350.0,118340.0,0.93057578]
[1753713578043,0.98598523,118350.0,118340.0,0.99868784]
[1753713579042,1.15497263,118350.0,118340.0,0.99868784]
[1753713579242,0.98598523,118350.0,118340.0,0.99868784]
[1753713579445,1.15497263,118350.0,118340.0,0.99868784]
[1753713580642,1.15497263,118350.0,118340.0,0.81323206]
[1753713580643,1.66384815,118350.0,118340.0,0.81323206]
[1753713580842,1.66384815,118350.0,118340.0,0.81299206]
[1753713581043,1.66384815,118350.0,118340.0,0.98199376]
[1753713581243,1.15497263,118350.0,118340.0,0.98199376]
[1753713581442,0.64609711,118350.0,118340.0,0.98199376]
[1753713581643,1.15497263,118350.0,118340.0,0.98199376]
[1753713583149,1.15497263,118350.0,118340.0,1.01455376]
[1753713583849,1.15158292,118350.0,118340.0,1.01116377]
[1753713584245,0.406336,118330.0,118320.0,0.17760337]
[1753713584438,1.15157152,118330.0,118320.0,1.00643667]
[1753713584843,0.98255552,118330.0,118320.0,1.02678667]
[1753713585039,0.04729,118330.0,118320.0,1.02678667]
[1753713585252,0.2162917,118340.0,118330.0,0.221926]
[1753713585440,0.04729,118340.0,118330.0,0.221926]
[1753713585844,0.55616552,118340.0,118330.0,0.221926]
[1753713586050,0.72358552,118340.0,118330.0,0.28841542]
[1753713586351,0.04929,118340.0,118330.0,0.28841542]
[1753713586851,0.2182917,118340.0,118330.0,0.28841542]
[1753713587047,0.6456817,118340.0,118330.0,0.28841542]
[1753713587252,0.98555552,118340.0,118330.0,0.28841542]
[1753713587850,0.05029,118340.0,118330.0,0.26806542]
[1753713588052,0.05029,118340.0,118330.0,0.28841542]
[1753713588654,0.003,118340.0,118330.0,0.28841542]
[1753713588851,0.003,118340.0,118330.0,0.82026189]
[1753713589051,0.003,118340.0,118330.0,0.79729094]
[1753713589255,0.01635192,118340.0,118330.0,0.28841542]
[1753713589450,0.01635192,118340.0,118330.0,0.79729094]
[1753713589655,0.01635192,118340.0,118330.0,0.96629894]
[1753713590246,0.76240592,118380.0,118340.0,0.0064]
[1753713590448,0.47368,118360.0,118350.0,0.7544528]
[1753713590656,1.15152862,118360.0,118350.0,0.7966996]
[1753713591254,1.15152862,118360.0,118350.0,0.80510064]
[1753713591455,1.15152862,118360.0,118350.0,0.80610064]
[1753713592159,1.15152862,118360.0,118350.0,1.0399278]
[1753713592459,1.15152862,118360.0,118350.0,0.997681]
[1753713593356,1.15152862,118360.0,118350.0,0.9131874]
[1753713593558,1.21212561,118360.0,118350.0,0.9131874]
[1753713595657,1.21212561,118360.0,118350.0,0.001]
[1753713595958,0.04738,118350.0,118330.0,1.06265102]
[1753713596158,1.14054722,118340.0,118330.0,1.06265102]
[1753713596951,1.14054722,118340.0,118330.0,1.02039722]
[1753713597159,1.14054722,118340.0,118330.0,0.169014]
[1753713597360,1.14054722,118340.0,118330.0,0.170014]
[1753713597653,1.88302722,118340.0,118330.0,0.170014]
[1753713598759,1.88302722,118340.0,118330.0,0.19309478]
[1753713599153,1.88302722,118340.0,118330.0,0.02408078]
[1753713599356,1.88302722,118340.0,118330.0,0.001]
[1753713599664,1.88302722,118340.0,118330.0,0.170016]
[1753713602164,1.89636924,118340.0,118330.0,0.170016]
[1753713602563,1.89636924,118340.0,118330.0,0.19311542]
[1753713603168,1.89636924,118340.0,118330.0,0.02409942]
[1753713603861,0.352436,118330.0,118320.0,0.32659334]
[1753713604067,1.15390354,118330.0,118320.0,0.21513896]
[1753713604973,1.15390354,118330.0,118320.0,0.21613896]
[1753713605266,1.15390354,118330.0,118320.0,0.21713896]
[1753713606564,1.15390354,118330.0,118320.0,0.002]
[1753713606761,0.3524503,118320.0,118310.0,0.05307624]
[1753713606960,1.89507784,118320.0,118310.0,0.0303125]
[1753713607570,0.6317146,118310.0,118300.0,0.04567918]
[1753713607768,1.64946564,118310.0,118300.0,0.04567918]
[1753713607957,0.6317288,118300.0,118290.0,0.27554156]
[1753713608161,2.39055984,118300.0,118290.0,0.27554156]
[1753713608364,2.40412036,118300.0,118290.0,0.22986238]
[1753713608564,2.39055984,118300.0,118290.0,0.06420576]
[1753713608758,2.39055984,118300.0,118290.0,0.18759968]
[1753713608959,2.39055984,118300.0,118290.0,0.01852658]
[1753713609164,2.39055984,118300.0,118290.0,0.18759968]
[1753713609466,2.40412083,118300.0,118290.0,0.04133218]
[1753713609663,2.40412083,118300.0,118290.0,0.21040528]
[1753713609864,2.40412083,118300.0,118290.0,0.21240528]
[1753713610568,2.40412083,118300.0,118290.0,0.21040528]
[1753713610957,2.39055984,118300.0,118290.0,0.01852658]
[1753713611768,2.39055984,118300.0,118290.0,0.14459968]
[1753713612369,1.64947984,118300.0,118290.0,0.14459968]
[1753713612567,1.89457434,118300.0,118290.0,0.16740207]
[1753713614371,1.88104432,118300.0,118290.0,0.14459968]
[1753713614572,1.89457368,118300.0,118290.0,0.16739798]
[1753713614971,0.6317288,118300.0,118290.0,0.19027886]
[1753713615165,1.14060432,118300.0,118290.0,0.18208968]
[1753713615361,1.14060432,118300.0,118290.0,0.22776886]
[1753713615573,1.14060432,118300.0,118290.0,0.17888968]
[1753713615774,1.14060432,118300.0,118290.0,0.19227886]
[1753713616074,1.14060432,118300.0,118290.0,0.21519334]
[1753713616772,1.14060432,118300.0,118290.0,0.06859366]
[1753713616773,1.64947984,118300.0,118290.0,0.06859366]
[1753713616968,1.66331551,118300.0,118290.0,0.19198758]
[1753713617769,1.66331551,118300.0,118290.0,0.02291448]
[1753713618575,1.6633035,118300.0,118290.0,0.02291448]
[1753713618763,1.14060432,118300.0,118290.0,0.19198758]
[1753713618963,1.14060432,118300.0,118290.0,0.23966676]
[1753713618964,1.88028432,118300.0,118290.0,0.23966676]
[1753713619177,1.88028432,118300.0,118290.0,0.19666676]
[1753713620072,1.88028432,118300.0,118290.0,0.19466676]
[1753713620877,1.14060432,118300.0,118290.0,0.19466676]
[1753713621072,0.97154552,118300.0,118290.0,0.19466676]
[1753713621270,0.46267,118300.0,118290.0,0.21778758]
[1753713622577,0.97154552,118300.0,118290.0,0.21778758]
[1753713623275,1.14060432,118300.0,118290.0,0.18847758]
[1753713623478,0.46267,118300.0,118290.0,0.18847758]
[1753713623676,0.97154552,118300.0,118290.0,0.18847758]
[1753713624273,0.6317288,118300.0,118290.0,0.23507777]
[1753713624474,1.14060432,118300.0,118290.0,0.23507777]
[1753713624682,0.6317288,118300.0,118290.0,0.23507777]
[1753713624980,1.14060432,118300.0,118290.0,0.23507777]
[1753713626171,1.14060432,118300.0,118290.0,0.23407777]
[1753713627884,1.14060432,118300.0,118290.0,0.23307777]
[1753713628583,1.15466437,118300.0,118290.0,0.18747758]
[1753713629579,0.64578885,118300.0,118290.0,0.18747758]
[1753713629883,1.15466437,118300.0,118290.0,0.18747758]
[1753713630874,1.15466437,118300.0,118290.0,0.18427758]
[1753713631383,1.15466437,118300.0,118290.0,0.20707883]
[1753713631971,1.15466437,118300.0,118290.0,0.17478883]
[1753713632976,1.15466437,118300.0,118290.0,0.17278883]
[1753713634572,2.40109989,118300.0,118290.0,0.001]
[1753713634779,0.6522988,118280.0,118270.0,0.9066466]
[1753713634979,1.17523437,118280.0,118270.0,0.02240692]
[1753713635187,0.6523274,118260.0,118250.0,0.23635613]
[1753713635393,0.6523417,118250.0,118240.0,0.18116171]
[1753713635576,1.16121722,118250.0,118240.0,1.08772341]
[1753713635878,1.16121722,118250.0,118240.0,1.06792322]
[1753713636078,1.16121722,118250.0,118240.0,0.2114033]
[1753713636277,0.652356,118240.0,118230.0,0.29931369]
[1753713636477,1.16123152,118240.0,118230.0,0.2537135]
[1753713636673,1.16123152,118240.0,118230.0,0.9909935]
[1753713636876,1.16123152,118240.0,118230.0,0.2537135]
[1753713637076,1.16123152,118240.0,118230.0,0.9909935]
[1753713637580,1.16123152,118240.0,118230.0,1.02134516]
[1753713637778,1.16123152,118240.0,118230.0,1.02122516]
[1753713638176,1.16123152,118240.0,118230.0,1.11530501]
[1753713638377,0.99209552,118240.0,118230.0,1.08495335]
[1753713638586,1.16123152,118240.0,118230.0,1.13075501]
[1753713638884,1.16123152,118240.0,118230.0,1.13923936]
[1753713639284,1.16123152,118240.0,118230.0,1.14023936]
[1753713640181,1.16123152,118240.0,118230.0,1.1098877]
[1753713640486,0.99209552,118240.0,118230.0,1.1098877]
[1753713641076,1.16123152,118240.0,118230.0,1.1098877]
[1753713641687,0.99209552,118240.0,118230.0,1.1098877]
[1753713642386,1.16123152,118240.0,118230.0,1.1098877]
[1753713643681,0.652356,118240.0,118230.0,1.1098877]
[1753713643881,0.99209552,118240.0,118230.0,1.1098877]
[1753713644185,1.16123152,118240.0,118230.0,1.1098877]
[1753713645689,0.99209552,118240.0,118230.0,1.1098877]
[1753713646590,1.16123152,118240.0,118230.0,1.1098877]
[1753713647289,1.16123152,118240.0,118230.0,1.13160671]
[1753713647788,1.16123152,118240.0,118230.0,0.24363026]
[1753713648095,1.16123152,118240.0,118230.0,0.92886931]
[1753713648792,1.16123152,118240.0,118230.0,0.75971901]
[1753713649380,1.16974844,118240.0,118230.0,0.75971901]
[1753713649587,1.16974844,118240.0,118230.0,0.02371901]
[1753713649787,1.90554844,118240.0,118230.0,0.02371901]
[1753713649989,0.3618446,118220.0,118210.0,0.97753636]
[1753713650190,1.16126012,118220.0,118210.0,0.97753636]
[1753713650790,1.16126012,118220.0,118210.0,0.24181636]
[1753713651395,1.16126012,118220.0,118210.0,0.24281636]
[1753713651994,1.16126012,118220.0,118210.0,0.03135166]
[1753713652391,1.16126012,118220.0,118210.0,0.20253056]
[1753713652594,1.16126012,118220.0,118210.0,0.03335166]
[1753713653299,1.16126012,118220.0,118210.0,0.03235166]
[1753713654491,1.89666012,118220.0,118210.0,0.20153056]
[1753713655290,1.16126012,118220.0,118210.0,0.20153056]
[1753713655691,1.16126012,118220.0,118210.0,0.03235166]
[1753713656086,1.16126012,118220.0,118210.0,0.002]
[1753713656284,1.16126012,118220.0,118210.0,0.03235166]
[1753713656692,0.6440389,118210.0,118200.0,0.32967538]
[1753713656891,1.15291442,118210.0,118200.0,0.32967538]
[1753713657392,1.15291442,118210.0,118200.0,0.29938779]
[1753713658098,1.15291442,118210.0,118200.0,0.21679339]
[1753713658393,1.15291442,118210.0,118200.0,0.1711932]
[1753713658890,1.88767442,118210.0,118200.0,0.002]
[1753713659093,1.88767442,118210.0,118200.0,0.1711932]
[1753713659288,1.88767442,118210.0,118200.0,0.002]
[1753713659598,1.88767442,118210.0,118200.0,0.1711932]
[1753713660688,0.06083962,118210.0,118200.0,0.3536032]
[1753713660890,0.06083962,118210.0,118200.0,0.83363607]
[1753713661092,0.01462962,118210.0,118200.0,0.83363607]
[1753713661294,0.47948287,118220.0,118210.0,0.3030689]
[1753713661596,0.66185124,118220.0,118210.0,1.1327889]
[1753713661793,0.76833287,118220.0,118210.0,1.1327889]
[1753713661992,0.90813287,118220.0,118210.0,1.15444837]
[1753713662187,1.07729737,118220.0,118210.0,1.1327889]
[1753713662902,1.15185716,118220.0,118210.0,0.9034588]
[1753713663093,1.16649264,118220.0,118210.0,0.9034588]
[1753713663293,1.16649889,118220.0,118210.0,0.9034588]
[1753713663490,1.16649889,118220.0,118210.0,1.02064624]
[1753713663694,1.16649889,118220.0,118210.0,1.12299624]
[1753713664297,1.16649889,118220.0,118210.0,0.07019744]
[1753713664498,1.16649889,118220.0,118210.0,0.02167744]
[1753713665199,1.16649889,118220.0,118210.0,0.19085634]
[1753713665805,1.16649889,118220.0,118210.0,0.19185634]
[1753713666603,1.16649889,118220.0,118210.0,0.02267744]
[1753713667308,1.16649889,118220.0,118210.0,0.19185634]
[1753713668805,1.16649889,118220.0,118210.0,0.02267744]
[1753713669203,0.1691789,118210.0,118200.0,1.00975224]
[1753713669506,1.16651329,118210.0,118200.0,1.00975224]
[1753713670605,1.16651329,118210.0,118200.0,0.2980748]
[1753713671006,1.16651329,118210.0,118200.0,0.3000748]
[1753713672608,1.16651329,118210.0,118200.0,0.2577766]
[1753713673410,0.65868063,118210.0,118200.0,0.2577766]
[1753713673605,1.16651329,118210.0,118200.0,0.3217466]
[1753713673806,0.65868063,118210.0,118200.0,0.4556366]
[1753713674013,1.16651329,118210.0,118200.0,0.4869466]
[1753713674406,1.16651329,118210.0,118200.0,0.4556366]
[1753713674908,1.16651329,118210.0,118200.0,0.1731817]
[1753713675214,1.16651329,118210.0,118200.0,0.9061817]
[1753713675907,1.16651329,118210.0,118200.0,0.737]
[1753713676107,1.16651329,118210.0,118200.0,0.004]
[1753713676507,0.6440675,118190.0,118180.0,0.28575487]
[1753713676816,1.16676212,118190.0,118180.0,0.9019418]
[1753713677610,0.5716418,118180.0,118170.0,0.34245267]
[1753713677813,1.15191446,118180.0,118170.0,1.13264461]
[1753713678207,1.15191446,118180.0,118170.0,1.14809461]
[1753713678609,1.1667521,118180.0,118170.0,1.14809461]
[1753713678912,0.9975303,118180.0,118170.0,1.14809461]
[1753713679118,0.9975303,118180.0,118170.0,1.17940461]
[1753713679511,0.98269266,118180.0,118170.0,1.17940461]
[1753713679708,0.47486,118190.0,118180.0,0.3031118]
[1753713680016,0.6589059,118190.0,118180.0,0.3983918]
[1753713680713,1.16673856,118190.0,118180.0,0.3983918]
[1753713680918,1.16673856,118190.0,118180.0,0.3670818]
[1753713681314,1.16873856,118190.0,118180.0,0.3670818]
[1753713681519,1.16973856,118190.0,118180.0,0.3670818]
[1753713682019,1.16973856,118190.0,118180.0,0.3983918]
[1753713682214,0.0640484,118190.0,118180.0,0.3670818]
[1753713682414,0.0640484,118190.0,118180.0,1.63838446]
[1753713682622,0.04921,118190.0,118180.0,1.1305518]
[1753713683016,0.003,118190.0,118180.0,1.1305518]
[1753713683220,0.003,118190.0,118180.0,1.6598521]
[1753713683827,0.003,118190.0,118180.0,1.15201944]
[1753713687428,0.01788122,118190.0,118180.0,1.15201944]
[1753713688326,0.96030676,118210.0,118200.0,0.3030932]
[1753713688327,0.04613,118210.0,118200.0,0.3030932]
[1753713688632,0.23203357,118210.0,118200.0,1.15136084]
[1753713688929,0.48996357,118210.0,118200.0,1.15996772]
[1753713689928,0.99779623,118210.0,118200.0,1.15996772]
[1753713690434,0.99879623,118210.0,118200.0,1.15996772]
[1753713692030,0.99879623,118210.0,118200.0,1.12865772]
[1753713692232,1.16797503,118210.0,118200.0,1.12865772]
[1753713692529,1.16797503,118210.0,118200.0,0.93038772]
[1753713692729,0.99879623,118210.0,118200.0,1.12825772]
[1753713692928,0.99879623,118210.0,118200.0,1.15956772]
[1753713693131,1.16897503,118210.0,118200.0,1.15956772]
[1753713693329,1.16897503,118210.0,118200.0,1.12825772]
[1753713694432,0.66114237,118210.0,118200.0,1.12825772]
[1753713694633,1.16897503,118210.0,118200.0,1.12825772]
[1753713695934,0.66114237,118210.0,118200.0,1.12825772]
[1753713696234,1.16897503,118210.0,118200.0,1.12825772]
[1753713696627,0.25096357,118210.0,118200.0,1.15956772]
[1753713696830,0.06301357,118210.0,118200.0,1.15956772]
[1753713697027,0.01688357,118210.0,118200.0,1.66740038]
[1753713697233,0.01688357,118210.0,118200.0,1.15956772]
[1753713697927,0.06301357,118210.0,118200.0,1.15956772]
[1753713698735,0.23403357,118210.0,118200.0,1.15956772]
[1753713699327,0.001,118210.0,118200.0,1.66740038]
[1753713699632,0.47508,118250.0,118240.0,0.169136]
[1753713699836,0.47508,118250.0,118240.0,1.128436]
[1753713700036,0.23408,118250.0,118240.0,1.63626866]
[1753713700239,0.04613,118250.0,118240.0,1.63626866]
[1753713700535,0.47508,118260.0,118250.0,0.3983017]
[1753713700836,0.4051,118260.0,118250.0,0.40676677]
[1753713701236,0.47508,118260.0,118250.0,0.40676677]
[1753713701732,0.1277,118260.0,118250.0,0.40676677]
[1753713701936,0.04613,118260.0,118250.0,0.40676677]
[1753713702641,1.15202006,118260.0,118250.0,0.44181693]
[1753713702934,1.15202006,118260.0,118250.0,1.17157693]
[1753713703140,1.15202006,118260.0,118250.0,1.17257693]
[1753713703843,0.47508,118260.0,118250.0,1.17157693]
[1753713704029,0.04613,118270.0,118250.0,1.00445523]
[1753713704235,0.47508,118270.0,118260.0,0.5251178]
[1753713704433,0.47508,118270.0,118260.0,0.54671142]
[1753713704434,0.04613,118270.0,118260.0,0.54671142]
[1753713704938,0.04613,118270.0,118260.0,0.5251178]
[1753713705135,1.15200576,118270.0,118260.0,0.4938078]
[1753713705934,1.15200576,118270.0,118260.0,0.451531]
[1753713707031,1.15200576,118270.0,118260.0,0.452531]
[1753713707340,1.15200576,118270.0,118260.0,1.181811]
[1753713707542,1.15200576,118270.0,118260.0,1.064011]
[1753713708243,0.98291266,118270.0,118260.0,1.064011]
[1753713708441,0.98291266,118270.0,118260.0,1.079461]
[1753713708842,0.98291266,118270.0,118260.0,1.080461]
[1753713710239,1.15200566,118270.0,118260.0,1.080461]
[1753713710439,0.98291266,118270.0,118260.0,1.080461]
[1753713710848,1.15200566,118270.0,118260.0,1.080461]
[1753713711649,1.15200566,118270.0,118260.0,0.9419842]
[1753713712849,0.98291266,118270.0,118260.0,1.1716342]
[1753713713248,0.23408,118270.0,118260.0,1.1716342]
[1753713713643,0.40765,118270.0,118260.0,1.1716342]
[1753713713852,0.23408,118270.0,118260.0,1.1716342]
[1753713714046,0.40564,118280.0,118270.0,0.169093]
[1753713714247,0.50165894,118280.0,118270.0,0.398743]
[1753713714751,0.41545,118280.0,118270.0,0.398743]
[1753713714952,0.30465,118280.0,118270.0,0.42035108]
[1753713715251,0.30465,118280.0,118270.0,0.398743]
[1753713716048,0.48705,118280.0,118270.0,0.398743]
[1753713716643,0.48705,118290.0,118280.0,0.3674188]
[1753713716844,0.48705,118290.0,118280.0,1.1267288]
[1753713716845,0.41545,118290.0,118280.0,1.1267288]
[1753713717049,0.04847,118290.0,118280.0,1.1267288]
[1753713718353,0.6983214,118330.0,118320.0,0.2535235]
[1753713718550,1.32075683,118330.0,118320.0,0.95588255]
[1753713718848,1.22075683,118330.0,118320.0,0.95588255]
[1753713719049,0.1690216,118320.0,118310.0,0.3175105]
[1753713719253,1.16390426,118320.0,118310.0,1.0618005]
[1753713719456,1.17850163,118320.0,118310.0,1.0618005]
[1753713719748,1.16390426,118320.0,118310.0,1.0297805]
[1753713719948,1.1785016,118320.0,118310.0,1.0297805]
[1753713720349,1.00948,118320.0,118310.0,1.0452305]
[1753713720551,0.99488266,118320.0,118310.0,1.0452305]
[1753713720752,0.99488266,118320.0,118310.0,1.0765405]
[1753713721256,1.16390426,118320.0,118310.0,1.0765405]
[1753713721749,1.16390426,118320.0,118310.0,1.0452305]
[1753713722653,1.16390426,118320.0,118310.0,1.05393349]
[1753713723256,0.99488266,118320.0,118310.0,1.05393349]
[1753713723454,0.48705,118320.0,118310.0,1.08524349]
[1753713723957,0.48705,118320.0,118310.0,1.15291784]
[1753713724855,1.16390426,118320.0,118310.0,0.52825784]
[1753713725060,1.16390426,118320.0,118310.0,1.21307934]
[1753713727260,0.99488266,118320.0,118310.0,1.21307934]
[1753713727653,0.99488266,118320.0,118310.0,1.24438934]
[1753713727852,0.24188,118320.0,118310.0,1.24438934]
[1753713728456,0.99488266,118320.0,118310.0,1.24438934]
[1753713728760,1.16390436,118320.0,118310.0,1.21307934]
[1753713728962,1.16390436,118320.0,118310.0,1.19276804]
[1753713729862,1.16390436,118320.0,118310.0,1.19200804]
[1753713730159,0.99488266,118320.0,118310.0,1.19200804]
[1753713730549,1.16390436,118320.0,118310.0,1.01393934]
[1753713730751,0.99488266,118320.0,118310.0,1.01393934]
[1753713731058,0.99488266,118320.0,118310.0,1.05759934]
[1753713731255,0.99488266,118320.0,118310.0,1.07919817]
[1753713732161,1.00951844,118320.0,118310.0,1.07919817]
[1753713732359,0.76434844,118320.0,118310.0,1.07919817]
[1753713732555,1.00951844,118320.0,118310.0,1.11050817]
[1753713732961,1.00951844,118320.0,118310.0,1.07919817]
[1753713733262,1.00952423,118320.0,118310.0,1.07919817]
[1753713733558,0.99488266,118320.0,118310.0,1.07919817]
[1753713733762,1.00952336,118320.0,118310.0,1.07919817]
[1753713735361,0.99488266,118320.0,118310.0,1.05759934]
[1753713735568,0.99488266,118320.0,118310.0,1.08890934]
[1753713735864,0.48705,118320.0,118310.0,1.08890934]
[1753713736057,0.04847,118320.0,118310.0,1.08890934]
[1753713736253,0.41545,118340.0,118330.0,0.0422487]
[1753713736463,0.5016969,118340.0,118330.0,1.1246471]
[1753713736769,1.17852256,118340.0,118330.0,1.1668177]
[1753713736971,0.5016969,118340.0,118330.0,1.0532977]
[1753713737156,1.17852256,118340.0,118330.0,0.87106]
[1753713737462,1.18052256,118340.0,118330.0,0.87106]
[1753713737663,0.48705,118320.0,118310.0,0.43320504]
[1753713737965,0.99488266,118320.0,118310.0,0.22191734]
[1753713738164,0.99488266,118320.0,118310.0,1.11631314]
[1753713738359,1.16390416,118320.0,118310.0,0.021629]
[1753713738565,1.16390416,118320.0,118310.0,0.746949]
[1753713738761,1.17855613,118320.0,118310.0,0.746949]
[1753713738957,1.17855613,118320.0,118310.0,0.049839]
[1753713739163,1.17855963,118320.0,118310.0,0.75341]
[1753713739364,1.16390416,118320.0,118310.0,0.75341]
[1753713739564,1.16390416,118320.0,118290.0,0.19954048]
[1753713739565,0.48705,118300.0,118290.0,0.44055828]
[1753713739761,0.48705,118300.0,118290.0,1.19606966]
[1753713740160,0.48705,118300.0,118290.0,1.17342477]
[1753713740466,0.48705,118300.0,118290.0,1.19606966]
[1753713740770,0.41545,118300.0,118290.0,1.22937966]
[1753713741157,0.41545,118300.0,118290.0,1.23137966]
[1753713741357,1.24842546,118320.0,118310.0,0.1972457]
[1753713741562,1.22083506,118320.0,118310.0,0.9222857]
[1753713742268,1.22083506,118320.0,118310.0,0.8940757]
[1753713742663,1.17857916,118320.0,118310.0,0.9222857]
[1753713742869,1.17857916,118320.0,118310.0,0.9377357]
[1753713743277,1.17857916,118320.0,118310.0,0.9374957]
[1753713743469,1.17857916,118320.0,118310.0,0.9220457]
[1753713743771,1.17857916,118320.0,118310.0,0.9220057]
[1753713744974,1.00954986,118320.0,118310.0,0.9220057]
[1753713745170,1.00954986,118320.0,118310.0,0.9685157]
[1753713745777,1.00954986,118320.0,118310.0,0.99021649]
[1753713745973,1.00954986,118320.0,118310.0,0.9685157]
[1753713746171,1.00954986,118320.0,118310.0,0.99022534]
[1753713746375,1.17857126,118320.0,118310.0,0.99022606]
[1753713746777,1.10329586,118320.0,118310.0,0.99022606]
[1753713747075,0.93427446,118320.0,118310.0,1.06008606]
[1753713747478,1.10329586,118320.0,118310.0,1.06008606]
[1753713747677,1.10329586,118320.0,118310.0,0.91550606]
[1753713748480,0.93427446,118320.0,118310.0,1.06008606]
[1753713749580,1.10329586,118320.0,118310.0,1.06008606]
[1753713751382,1.10329586,118320.0,118310.0,0.99022606]
[1753713751683,1.10329586,118320.0,118310.0,0.97477606]
[1753713751888,1.10329586,118320.0,118310.0,0.25001606]
[1753713752090,1.10329586,118320.0,118310.0,0.97389606]
[1753713752492,1.10329586,118320.0,118310.0,0.93727095]
[1753713753192,0.6707386,118320.0,118310.0,0.93723095]
[1753713753496,0.6707386,118320.0,118310.0,0.96544095]
[1753713753497,1.10329586,118320.0,118310.0,0.96544095]
[1753713755698,1.53585312,118320.0,118310.0,0.04435525]
[1753713755899,1.53585312,118320.0,118310.0,0.91438606]
[1753713756199,1.53585312,118320.0,118310.0,0.19074606]
[1753713757697,1.53585312,118320.0,118310.0,0.02171036]
[1753713758599,0.3552101,118300.0,118290.0,0.99946279]
[1753713758899,0.80243456,118300.0,118290.0,1.02675576]
[1753713759098,1.08308456,118300.0,118290.0,1.02675576]
[1753713759999,1.08308456,118300.0,118290.0,0.30351576]
[1753713760193,1.08308456,118300.0,118290.0,1.04212576]
[1753713760399,1.08308456,118300.0,118290.0,1.04412576]
[1753713760800,1.08308456,118300.0,118290.0,1.04612576]
[1753713761094,1.08308456,118300.0,118290.0,1.00246576]
[1753713761300,1.08308456,118300.0,118290.0,0.91795216]
[1753713761495,0.91403446,118300.0,118290.0,1.04708216]
[1753713761701,0.2489072,118300.0,118290.0,1.09084216]
[1753713761999,0.4088872,118300.0,118290.0,1.09184216]
[1753713762199,0.91403446,118300.0,118290.0,1.09184216]
[1753713762399,0.6505272,118300.0,118290.0,1.09184216]
[1753713762596,1.08308446,118300.0,118290.0,1.09184216]
[1753713762796,0.91403446,118300.0,118290.0,1.09184216]
[1753713763097,0.4814772,118300.0,118290.0,1.09184216]
[1753713763300,0.91403446,118300.0,118290.0,1.09184216]
[1753713769001,0.0146672,118300.0,118290.0,1.52439942]
[1753713769201,0.09596,118310.0,118300.0,0.34494]
[1753713769505,1.08311104,118310.0,118300.0,0.91297786]
[1753713769700,1.08311104,118310.0,118300.0,0.74388786]
[1753713769905,1.08311104,118310.0,118300.0,0.72216]
[1753713770105,0.63586,118300.0,118290.0,0.002]
[1753713770306,1.08312534,118300.0,118290.0,0.74579942]
[1753713770505,1.08312534,118300.0,118290.0,0.91486372]
[1753713770702,1.08312534,118300.0,118290.0,0.8931443]
[1753713771102,1.08312534,118300.0,118290.0,0.8921443]
[1753713771902,0.2536161,118290.0,118280.0,0.2113384]
[1753713772099,0.92643534,118290.0,118280.0,1.05230672]
[1753713772294,1.09549964,118290.0,118280.0,1.12727672]
[1753713772495,1.09549964,118290.0,118280.0,0.40519672]
[1753713772694,1.09549964,118290.0,118280.0,1.17225672]
[1753713772894,1.17015247,118290.0,118280.0,1.17225672]
[1753713773199,1.17015247,118290.0,118280.0,0.95685762]
[1753713773500,1.17015247,118290.0,118280.0,1.00051762]
[1753713774608,1.17015247,118290.0,118280.0,1.00251762]
[1753713776603,1.00108817,118290.0,118280.0,1.03382762]
[1753713776804,1.17015247,118290.0,118280.0,1.03382762]
[1753713778210,0.49387808,118290.0,118280.0,1.03382762]
[1753713778412,1.00108817,118290.0,118280.0,1.03382762]
[1753713779308,1.17015247,118290.0,118280.0,1.03382762]
[1753713780712,1.00108817,118290.0,118280.0,1.03382762]
[1753713781409,0.01470808,118290.0,118280.0,1.55972072]
[1753713781613,0.47917,118300.0,118290.0,0.3440743]
[1753713781813,0.66291952,118300.0,118290.0,0.36579352]
[1753713782009,0.06193952,118300.0,118290.0,0.36579352]
[1753713782216,0.643211,118320.0,118310.0,0.3127357]
[1753713782520,0.643211,118320.0,118310.0,1.0650457]
[1753713782718,1.19766109,118320.0,118310.0,1.0650457]
[1753713783018,1.19766109,118320.0,118310.0,1.0337357]
[1753713784419,1.19966109,118320.0,118310.0,1.0337357]
[1753713784715,1.19966109,118320.0,118310.0,1.05548864]
[1753713785514,1.19966109,118320.0,118310.0,1.06415528]
[1753713786107,1.19766109,118320.0,118310.0,1.06415528]
[1753713786617,1.15540149,118320.0,118310.0,1.06415528]
[1753713786914,1.15540149,118320.0,118310.0,1.02115528]
[1753713787113,1.15540149,118320.0,118310.0,1.05246528]
[1753713787114,0.98638009,118320.0,118310.0,1.05246528]
[1753713787316,1.15540149,118320.0,118310.0,1.05246528]
[1753713787515,0.98638009,118320.0,118310.0,1.05246528]
[1753713787715,0.47917,118320.0,118310.0,1.05246528]
[1753713787919,0.47917,118320.0,118310.0,1.03071234]
[1753713788110,1.04260427,118340.0,118330.0,0.2844971]
[1753713788311,1.21586427,118340.0,118330.0,1.0331471]
[1753713788912,1.15538439,118340.0,118330.0,1.0331471]
[1753713789211,1.15738439,118340.0,118330.0,1.0331471]
[1753713790127,1.16038439,118340.0,118330.0,1.0331471]
[1753713790325,0.1740043,118340.0,118330.0,1.0176971]
[1753713790521,0.41647,118340.0,118330.0,1.57166719]
[1753713790825,0.6531628,118340.0,118330.0,1.0644571]
[1753713791118,0.6531628,118340.0,118330.0,1.08619778]
[1753713791324,0.48417,118340.0,118330.0,1.08619778]
[1753713791520,0.6531629,118340.0,118330.0,1.15295395]
[1753713791721,1.16037299,118340.0,118330.0,1.15295395]
[1753713792024,1.15937299,118340.0,118330.0,1.15295395]
[1753713792324,1.15937299,118340.0,118330.0,1.12164395]
[1753713792820,1.08160582,118340.0,118330.0,1.12164395]
[1753713793021,1.08360582,118340.0,118330.0,1.12164395]
[1753713793222,1.08360582,118340.0,118330.0,0.40120395]
[1753713793523,0.91461292,118340.0,118330.0,1.12108395]
[1753713793719,0.91461292,118340.0,118330.0,1.15239395]
[1753713794123,0.92925641,118340.0,118330.0,1.15239395]
[1753713794925,1.09824941,118340.0,118330.0,1.15239395]
[1753713796426,1.09824941,118340.0,118330.0,1.12108395]
[1753713797523,0.92925641,118340.0,118330.0,1.15239395]
[1753713799130,0.91461292,118340.0,118330.0,1.13065327]